fUSD/lending_fUSD_20260404
["ID","MTS","AMOUNT","RATE_DAILY","PERIOD"]
[419717806,1775332311967,-500.0,0.00035945,9]
[419717807,1775332311976,-689.94,0.00035945,9]
[419717808,1775332311986,-500.0,0.00035945,9]
[419717809,1775332311995,-1466.04,0.00035945,9]
[419717810,1775332312004,-500.0,0.00035945,9]
[419717811,1775332312013,-1210.82,0.00035945,9]
[419717812,1775332312025,-500.0,0.00035945,9]
[419717813,1775332312035,-500.0,0.00035945,9]
[419717814,1775332312044,-987.48,0.00035945,9]
[419717815,1775332312054,-1679.66,0.00035945,9]
[419717816,1775332312063,-500.0,0.00035945,9]
[419717817,1775332312073,-1583.7,0.00035945,9]
[419717818,1775332312082,-1088.32,0.00035945,9]
[419717819,1775332312092,-500.0,0.00035945,9]
[419717820,1775332312101,-500.0,0.00035945,9]
[419717821,1775332312111,-939.73,0.00035945,9]
[419717822,1775332312120,-500.0,0.00035945,9]
[419717823,1775332312130,-689.34,0.00035945,9]
[419717824,1775332312139,-500.0,0.00035945,9]
[419717825,1775332312149,-500.0,0.00035945,9]
[419717826,1775332312159,-500.0,0.00035945,9]
[419717827,1775332312169,-500.0,0.00035945,9]
[419717828,1775332312179,-1341.69,0.00035945,9]
[419717829,1775332312188,-500.0,0.00035945,9]
[419717830,1775332312198,-500.0,0.00035945,9]
[419717831,1775332312207,-500.0,0.00035945,9]
[419717832,1775332312217,-887.16,0.00035945,9]
[419717833,1775332312227,-520.88950198,0.00035945,9]
[419717834,1775332312236,-500.0,0.00035945,9]
[419717835,1775332312246,-2214.87,0.00035945,9]
[419717836,1775332312255,-500.0,0.00035945,9]
[419717837,1775332312264,-1053.02,0.00035945,9]
[419717838,1775332312273,-650.72,0.00035945,9]
[419717839,1775332312283,-499.56164795,0.00035945,9]
[419717840,1775332312292,-527.95949024,0.00035945,9]
[419717841,1775332312301,-500.0,0.00035945,9]
[419717842,1775332312311,-3460.22,0.00035945,9]
[419717843,1775332312321,-500.0,0.00035945,9]
[419717844,1775332312332,-198.00315498,0.00035945,9]
[419717845,1775332312343,-665.92,0.00035945,9]
[419717846,1775332312352,-500.0,0.00035945,9]
[419717847,1775332312362,-1510.72,0.00035945,9]
[419717848,1775332312371,-671.1,0.00035945,9]
[419717849,1775332312380,-500.0,0.00035945,9]
[419717850,1775332312390,-500.0,0.00035945,9]
[419717851,1775332312400,-661.05,0.00035945,9]
[419717852,1775332312410,-500.0,0.00035945,9]
[419717853,1775332312419,-2848.88,0.00035945,9]
[419717854,1775332312429,-500.0,0.00035945,9]
[419717855,1775332312442,-500.0,0.00035945,9]
[419717856,1775332312452,-500.0,0.00035945,9]
[419717857,1775332312461,-500.0,0.00035945,9]
[419717858,1775332312471,-500.0,0.00035945,9]
[419717859,1775332312481,-1158.03,0.00035945,9]
[419717860,1775332312491,-2056.21,0.00035945,9]
[419717861,1775332312501,-3716.1,0.00035945,9]
[419717862,1775332312512,-500.0,0.00035945,9]
[419717863,1775332312522,-3791.02,0.00035945,9]
[419717864,1775332312531,-500.0,0.00035945,9]
[419717865,1775332312540,-500.0,0.00035945,9]
[419717866,1775332312549,-1099.04,0.00035945,9]
[419717867,1775332312558,-581.88981894,0.00035945,9]
[419717868,1775332312568,-458.69097282,0.00035945,9]
[419717869,1775332312577,-500.0,0.00035945,9]
[419717870,1775332312587,-500.0,0.00035945,9]
[419717871,1775332312595,-4657.69,0.00035945,2]
[419717872,1775332312605,-500.0,0.00035945,9]
[419717873,1775332312614,-500.0,0.00035945,9]
[419717874,1775332312627,-170.81522651,0.00035945,9]
[419717875,1775332312638,-500.0,0.00035945,9]
[419717876,1775332312649,-1363.26,0.00035945,9]
[419717877,1775332312659,-500.0,0.00035945,9]
[419717878,1775332312668,-500.0,0.00035945,9]
[419717879,1775332312678,-642.42,0.00035945,9]
[419717880,1775332312689,-500.0,0.00035945,9]
[419717881,1775332312699,-500.0,0.00035945,9]
[419717882,1775332312709,-500.0,0.00035945,9]
[419717883,1775332312718,-1016.34,0.00035945,9]
[419717884,1775332312727,-2811.63,0.00035945,9]
[419717885,1775332312739,-500.0,0.00035945,9]
[419717886,1775332312749,-1344.95,0.00035945,9]
[419717887,1775332312760,-500.0,0.00035945,9]
[419717888,1775332312771,-685.05,0.00035945,9]
[419717889,1775332312782,-920.03,0.00035945,9]
[419717890,1775332312791,-2020.19,0.00035945,9]
[419717891,1775332312800,-500.0,0.00035945,9]
[419717892,1775332312810,-500.0,0.00035945,9]
[419717893,1775332312819,-500.0,0.00035945,9]
[419717894,1775332312828,-500.0,0.00035945,9]
[419717895,1775332312837,-1538.98,0.00035945,9]
[419717896,1775332312848,-500.0,0.00035945,9]
[419717897,1775332312857,-500.0,0.00035945,9]
[419717898,1775332312868,-500.0,0.00035945,9]
[419717899,1775332312879,-500.0,0.00035945,9]
[419717900,1775332312890,-500.0,0.00035945,9]
[419717901,1775332312901,-500.0,0.00035945,9]
[419717902,1775332312911,-500.0,0.00035945,9]
[419717903,1775332312920,-583.25645344,0.00035945,9]
[419717904,1775332312931,-500.0,0.00035945,9]
[419717905,1775332312940,-300.0,0.00035945,2]
[419717906,1775332312950,-500.0,0.00035945,9]
[419717907,1775332312959,-627.94962312,0.00035945,9]
[419717908,1775332312968,-500.0,0.00035945,9]
[419717909,1775332312977,-4906.33,0.00035945,9]
[419717910,1775332312986,-500.0,0.00035945,9]
[419717911,1775332312996,-1247.96,0.00035945,9]
[419717912,1775332313005,-500.0,0.00035945,9]
[419717913,1775332313014,-1272.39,0.00035945,9]
[419717914,1775332313024,-847.31,0.00035945,9]
[419717915,1775332313033,-500.0,0.00035945,9]
[419717916,1775332313042,-500.0,0.00035945,9]
[419717917,1775332313051,-2712.78,0.00035945,9]
[419717918,1775332313061,-500.0,0.00035945,9]
[419717919,1775332313070,-500.0,0.00035945,9]
[419717920,1775332313080,-1482.77,0.00035945,9]
[419717921,1775332313089,-1648.41,0.00035945,9]
[419717922,1775332313099,-784.21,0.00035945,9]
[419717923,1775332313108,-2678.07,0.00035945,9]
[419717924,1775332313118,-1057.26,0.00035945,9]
[419717925,1775332313128,-3119.66,0.00035945,9]
[419717926,1775332313137,-500.0,0.00035945,5]
[419717927,1775332313147,-500.0,0.00035945,9]
[419717928,1775332313157,-3255.09,0.00035945,9]
[419717929,1775332313167,-500.0,0.00035945,9]
[419717930,1775332313177,-500.0,0.00035945,9]
[419717931,1775332313189,-2834.56,0.00035945,9]
[419717932,1775332313199,-500.0,0.00035945,9]
[419717933,1775332313213,-500.0,0.00035945,9]
[419717934,1775332313223,-919.38,0.00035945,9]
[419717935,1775332313235,-500.0,0.00035945,9]
[419717936,1775332313253,-530.40540712,0.00035945,9]
[419717937,1775332313273,-284.22984495,0.00035945,9]
[419717938,1775332313285,-500.0,0.00035945,9]
[419717939,1775332313301,-500.0,0.00035945,9]
[419717940,1775332313311,-1324.69,0.00035945,9]
[419717941,1775332313320,-1524.5,0.00035945,9]
[419717942,1775332313329,-3851.02,0.00035945,9]
[419717943,1775332313338,-500.0,0.00035945,9]
[419717944,1775332313360,-1860.07,0.00035945,9]
[419717945,1775332313370,-500.0,0.00035945,9]
[419717946,1775332313399,-991.9,0.00035945,9]
[419717947,1775332313413,-500.0,0.00035945,9]
[419717948,1775332313432,-1457.74,0.00035945,9]
[419717949,1775332313454,-739.68,0.00035945,9]
[419717950,1775332313471,-4759.97,0.00035945,9]
[419717951,1775332313480,-1835.76,0.00035945,9]
[419717952,1775332313510,-500.0,0.00035945,9]
[419717953,1775332313522,-864.07,0.00035945,9]
[419717954,1775332313536,-500.0,0.00035945,9]
[419717955,1775332313547,-517.58623831,0.00035945,9]
[419717956,1775332313557,-500.0,0.00035945,9]
[419717957,1775332313568,-2691.67,0.00035945,9]
[419717958,1775332313579,-500.0,0.00035945,9]
[419717959,1775332313601,-548.99654254,0.00035945,9]
[419717960,1775332313620,-500.0,0.00035945,9]
[419717961,1775332313630,-500.0,0.00035945,9]
[419717962,1775332313640,-500.0,0.00035945,9]
[419717963,1775332313649,-500.0,0.00035945,9]
[419717964,1775332313659,-500.0,0.00035945,9]
[419717965,1775332313668,-500.0,0.00035945,9]
[419717966,1775332313678,-500.0,0.00035945,9]
[419717967,1775332313687,-500.0,0.00035945,9]
[419717968,1775332313696,-500.0,0.00035945,9]
[419717969,1775332313705,-500.0,0.00035945,9]
[419717970,1775332313714,-500.0,0.00035945,9]
[419717971,1775332313724,-500.0,0.00035945,9]
[419717972,1775332313732,-832.88,0.00035945,9]
[419717973,1775332313742,-2429.23,0.00035945,9]
[419717974,1775332313752,-1552.09,0.00035945,9]
[419717975,1775332313761,-500.0,0.00035945,9]
[419717976,1775332313771,-500.0,0.00035945,9]
[419717977,1775332313780,-500.0,0.00035945,9]
[419717978,1775332313789,-2300.44,0.00035945,9]
[419717979,1775332313798,-500.0,0.00035945,9]
[419717980,1775332313808,-722.2,0.00035945,9]
[419717981,1775332313817,-500.0,0.00035945,9]
[419717982,1775332313826,-500.0,0.00035945,9]
[419717983,1775332313835,-500.0,0.00035945,9]
[419717984,1775332313844,-500.0,0.00035945,9]
[419717985,1775332313853,-1875.66,0.00035945,9]
[419717986,1775332313862,-856.85,0.00035945,9]
[419717987,1775332313871,-500.0,0.00035945,9]
[419717988,1775332313880,-1602.47,0.00035945,9]
[419717989,1775332313890,-500.0,0.00035945,9]
[419717990,1775332313900,-500.0,0.00035945,9]
[419717991,1775332313909,-500.0,0.00035945,9]
[419717992,1775332313919,-500.0,0.00035945,9]
[419717993,1775332313929,-500.0,0.00035945,9]
[419717994,1775332313938,-2561.66,0.00035945,9]
[419717995,1775332313948,-2085.41,0.00035945,9]
[419717996,1775332313957,-634.93,0.00035945,9]
[419717997,1775332313967,-500.0,0.00035945,9]
[419717998,1775332313976,-640.70853194,0.00035945,9]
[419717999,1775332313985,-500.0,0.00035945,9]
[419718000,1775332313994,-667.0,0.00035945,9]
[419718001,1775332314004,-1870.36,0.00035945,9]
[419718002,1775332314013,-500.0,0.00035945,9]
[419718003,1775332314023,-500.0,0.00035945,9]
[419718004,1775332314033,-533.73,0.00035945,9]
[419718005,1775332314042,-500.0,0.00035945,9]
[419718006,1775332314051,-500.0,0.00035945,9]
[419718007,1775332314061,-1534.12,0.00035945,9]
[419718008,1775332314070,-1716.24,0.00035945,9]
[419718009,1775332314080,-1548.87,0.00035945,9]
[419718010,1775332314089,-546.24694021,0.00035945,9]
[419718011,1775332314098,-1477.04,0.00035945,9]
[419718012,1775332314107,-500.0,0.00035945,9]
[419718013,1775332314116,-280.21504226,0.00035945,9]
[419718014,1775332314126,-500.0,0.00035945,9]
[419718015,1775332314135,-3546.04,0.00035945,9]
[419718016,1775332314144,-386.9078108,0.00035945,9]
[419718017,1775332314154,-500.0,0.00035945,9]
[419718018,1775332314163,-1144.34,0.00035945,9]
[419718019,1775332314172,-1514.21,0.00035945,9]
[419718020,1775332314182,-931.09,0.00035945,9]
[419718021,1775332314191,-544.18854903,0.00035945,9]
[419718022,1775332314200,-500.0,0.00035945,9]
[419718023,1775332314210,-500.0,0.00035945,9]
[419718024,1775332314219,-500.0,0.00035945,9]
[419718025,1775332314228,-796.08,0.00035945,9]
[419718026,1775332314237,-1253.59,0.00035945,9]
[419718027,1775332314247,-500.0,0.00035945,9]
[419718028,1775332314256,-500.0,0.00035945,9]
[419718029,1775332314266,-500.0,0.00035945,9]
[419718030,1775332314275,-500.0,0.00035945,9]
[419718031,1775332314284,-1918.72,0.00035945,9]
[419718032,1775332314293,-1526.6,0.00035945,9]
[419718033,1775332314303,-500.0,0.00035945,9]
[419718034,1775332314312,-500.0,0.00035945,9]
[419718035,1775332314322,-500.0,0.00035945,9]
[419718036,1775332314332,-538.56714825,0.00035945,9]
[419718037,1775332314341,-1585.21,0.00035945,9]
[419718038,1775332314351,-500.0,0.00035945,9]
[419718039,1775332314360,-514.71,0.00035945,9]
[419718040,1775332314369,-1721.53,0.00035945,9]
[419718041,1775332314379,-500.0,0.00035945,9]
[419718042,1775332314389,-500.0,0.00035945,9]
[419718043,1775332314398,-500.0,0.00035945,9]
[419718044,1775332314585,-500.0,0.00035945,9]
[419718045,1775332314610,-416.47178828,0.00035945,9]
[419718046,1775332314620,-1809.46,0.00035945,9]
[419718047,1775332314630,-500.0,0.00035945,9]
[419718048,1775332314639,-897.26,0.00035945,9]
[419718049,1775332314648,-500.0,0.00035945,9]
[419718050,1775332314657,-1413.82,0.00035945,9]
[419718051,1775332314667,-500.0,0.00035945,9]
[419718052,1775332314677,-957.36,0.00035945,9]
[419718053,1775332314686,-500.0,0.00035945,9]
[419718054,1775332314695,-500.0,0.00035945,9]
[419718055,1775332314705,-500.0,0.00035945,9]
[419718056,1775332314714,-500.0,0.00035945,9]
[419718057,1775332314723,-961.19,0.00035945,9]
[419718058,1775332314732,-4322.78,0.00035945,9]
[419718059,1775332314741,-500.0,0.00035945,9]
[419718060,1775332314750,-500.0,0.00035945,9]
[419718061,1775332314759,-500.0,0.00035945,9]
[419718062,1775332314768,-500.0,0.00035945,9]
[419718063,1775332314777,-1482.98,0.00035945,9]
[419718064,1775332314787,-804.52,0.00035945,9]
[419718065,1775332314796,-3934.55,0.00035945,9]
[419718066,1775332314806,-500.0,0.00035945,9]
[419718067,1775332314815,-186.37024955,0.00035945,9]
[419718068,1775332314825,-500.0,0.00035945,9]
[419718069,1775332314835,-500.0,0.00035945,9]
[419718070,1775332314845,-746.22,0.00035945,7]
[419718071,1775332314854,-4305.65,0.00035945,9]
[419718072,1775332314864,-500.0,0.00035945,9]
[419718073,1775332314873,-500.0,0.00035945,9]
[419718074,1775332314883,-500.0,0.00035945,9]
[419718075,1775332314892,-1369.12,0.00035945,9]
[419718076,1775332314902,-500.0,0.00035945,9]
[419718077,1775332314913,-500.0,0.00035945,9]
[419718078,1775332314923,-1177.45,0.00035945,9]
[419718079,1775332314933,-503.67152597,0.00035945,9]
[419718080,1775332314942,-500.0,0.00035945,9]
[419718081,1775332314952,-798.28,0.00035945,9]
[419718082,1775332314961,-500.0,0.00035945,9]
[419718083,1775332314971,-1917.88,0.00035945,9]
[419718084,1775332314980,-2157.58,0.00035945,9]
[419718085,1775332314990,-500.0,0.00035945,9]
[419718086,1775332315000,-500.0,0.00035945,9]
[419718087,1775332315010,-2063.41,0.00035945,9]
[419718088,1775332315020,-500.0,0.00035945,9]
[419718089,1775332315030,-500.0,0.00035945,9]
[419718090,1775332315040,-500.0,0.00035945,9]
[419718091,1775332315050,-500.0,0.00035945,9]
[419718092,1775332315060,-500.0,0.00035945,9]
[419718093,1775332315069,-3118.14,0.00035945,9]
[419718094,1775332315079,-500.0,0.00035945,9]
[419718095,1775332315089,-500.0,0.00035945,9]
[419718096,1775332315099,-500.0,0.00035945,9]
[419718097,1775332315108,-2737.83,0.00035945,4]
[419718098,1775332315118,-500.0,0.00035945,9]
[419718099,1775332315128,-500.0,0.00035945,9]
[419718100,1775332315137,-1000.0,0.00035945,9]
[419718101,1775332315147,-500.0,0.00035945,9]
[419718102,1775332315157,-1563.18,0.00035945,9]
[419718103,1775332315166,-500.0,0.00035945,9]
[419718104,1775332315176,-500.0,0.00035945,9]
[419718105,1775332315186,-4060.34,0.00035945,9]
[419718106,1775332315195,-1575.52,0.00035945,9]
[419718107,1775332315205,-605.12,0.00035945,9]
[419718108,1775332315215,-500.0,0.00035945,9]
[419718109,1775332315225,-500.0,0.00035945,9]
[419718110,1775332315234,-352.13022427,0.00035945,9]
[419718111,1775332315244,-500.0,0.00035945,9]
[419718112,1775332315253,-6051.39,0.00035945,9]
[419718113,1775332315263,-500.0,0.00035945,9]
[419718114,1775332315273,-953.62,0.00035945,9]
[419718115,1775332315283,-837.63,0.00035945,9]
[419718116,1775332315292,-500.0,0.00035945,9]
[419718117,1775332315302,-500.0,0.00035945,9]
[419718118,1775332315312,-544.92,0.00035945,9]
[419718119,1775332315322,-15090.94,0.00035945,9]
[419718120,1775332315332,-500.0,0.00035945,9]
[419718121,1775332315341,-500.0,0.00035945,9]
[419718122,1775332315351,-500.0,0.00035945,9]
[419718123,1775332315360,-500.0,0.00035945,9]
[419718124,1775332315370,-500.0,0.00035945,9]
[419718125,1775332315379,-500.0,0.00035945,9]
[419718126,1775332315388,-500.0,0.00035945,9]
[419718127,1775332315398,-500.0,0.00035945,9]
[419718128,1775332315407,-652.29,0.00035945,9]
[419718129,1775332315417,-500.0,0.00035945,9]
[419718130,1775332315428,-562.76663952,0.00035945,9]
[419718131,1775332315437,-995.42,0.00035945,9]
[419718132,1775332315447,-500.0,0.00035945,9]
[419718133,1775332315456,-767.44,0.00035945,9]
[419718134,1775332315466,-500.0,0.00035945,9]
[419718135,1775332315477,-500.0,0.00035945,9]
[419718136,1775332315488,-500.0,0.00035945,9]
[419718137,1775332315498,-884.36,0.00035945,9]
[419718138,1775332315509,-1203.6,0.00035945,9]
[419718139,1775332315520,-500.0,0.00035945,9]
[419718140,1775332315530,-500.0,0.00035945,9]
[419718141,1775332315540,-619.5655789,0.00035945,9]
[419718142,1775332315549,-5453.99,0.00035945,9]
[419718143,1775332315559,-1161.81,0.00035945,9]
[419718144,1775332315568,-845.06,0.00035945,9]
[419718145,1775332315578,-157.0,0.00036,120]
[419718146,1775332315587,-40126.83192372,0.00036,2]
[419718147,1775332315598,-44466.17750813,0.00036,30]
[419718148,1775332315608,-3876.0,0.00036,10]
[419718149,1775332315618,-987.89742782,0.00036,2]
[419718150,1775332315628,-11177.23,0.00036,2]
[419718151,1775332315638,-419.15464738,0.00036,120]
[419718152,1775332315648,-578.60686938,0.00036053,9]
[419718153,1775332315658,-578.60686938,0.00036053,9]
[419718154,1775332315668,-578.60686937,0.00036053,9]
[419718155,1775332315679,-578.60686937,0.00036053,9]
[419718156,1775332315689,-578.60686937,0.00036053,9]
[419718157,1775332315699,-578.60686937,0.00036053,9]
[419718158,1775332315709,-552.08899633,0.00036054,9]
[419718159,1775332315718,-500.0,0.00036054,9]
[419718160,1775332315727,-500.0,0.00036054,9]
[419718161,1775332315737,-500.0,0.00036054,9]
[419718162,1775332315747,-500.0,0.00036054,9]
[419718163,1775332315758,-500.0,0.00036054,9]
[419718164,1775332315767,-500.0,0.00036054,9]
[419718165,1775332315777,-500.0,0.00036054,9]
[419718166,1775332315787,-500.0,0.00036054,9]
[419718167,1775332315796,-500.0,0.00036054,9]
[419718168,1775332315806,-500.0,0.00036054,9]
[419718169,1775332315816,-500.0,0.00036054,9]
[419718170,1775332315826,-500.0,0.00036054,9]
[419718171,1775332315837,-500.0,0.00036054,9]
[419718172,1775332315847,-500.0,0.00036054,9]
[419718173,1775332315858,-500.0,0.00036054,9]
[419718174,1775332315868,-500.0,0.00036054,9]
[419718175,1775332315878,-505.72603569,0.00036054,9]
[419718176,1775332315888,-181.19954329,0.00036054,9]
[419718177,1775332315899,-500.0,0.00036054,9]
[419718178,1775332315908,-333.18155942,0.00036054,9]
[419718179,1775332315918,-500.0,0.00036054,9]
[419718180,1775332315928,-1728.47,0.00036054,9]
[419718181,1775332315938,-658.66,0.00036054,9]
[419718182,1775332315949,-500.0,0.00036054,9]
[419718183,1775332315959,-500.0,0.00036054,9]
[419718184,1775332315969,-269.23828727,0.00036054,9]
[419718185,1775332315979,-2616.79,0.00036054,9]
[419718186,1775332315989,-500.0,0.00036054,9]
[419718187,1775332315998,-500.0,0.00036054,9]
[419718188,1775332316009,-500.0,0.00036054,9]
[419718189,1775332316019,-500.0,0.00036054,9]
[419718190,1775332316028,-533.49,0.00036054,9]
[419718191,1775332316038,-500.0,0.00036054,9]
[419718192,1775332316049,-500.0,0.00036054,9]
[419718193,1775332316059,-500.0,0.00036054,9]
[419718194,1775332316069,-500.0,0.00036054,9]
[419718195,1775332316079,-500.0,0.00036054,9]
[419718196,1775332316089,-500.0,0.00036054,9]
[419718197,1775332316099,-500.0,0.00036054,9]
[419718198,1775332316109,-500.0,0.00036054,9]
[419718199,1775332316119,-500.0,0.00036054,9]
[419718200,1775332316129,-500.0,0.00036054,9]
[419718201,1775332316139,-500.0,0.00036054,9]
[419718202,1775332316149,-500.0,0.00036054,9]
[419718203,1775332316158,-500.0,0.00036054,9]
[419718204,1775332316168,-500.0,0.00036054,9]
[419718205,1775332316177,-626.36010843,0.00036054,9]
[419718206,1775332316187,-500.0,0.00036054,9]
[419718207,1775332316197,-500.0,0.00036054,9]
[419718208,1775332316207,-634.23,0.00036054,9]
[419718209,1775332316217,-795.8,0.00036054,9]
[419718210,1775332316227,-500.0,0.00036054,9]
[419718211,1775332316238,-500.0,0.00036054,9]
[419718212,1775332316248,-500.0,0.00036054,9]
[419718213,1775332316258,-500.0,0.00036054,9]
[419718214,1775332316267,-500.0,0.00036054,9]
[419718215,1775332316277,-500.0,0.00036054,2]
[419718216,1775332316286,-500.0,0.00036054,9]
[419718217,1775332316296,-244.84114979,0.00036054,9]
[419718218,1775332316305,-500.0,0.00036054,9]
[419718219,1775332316316,-500.0,0.00036054,9]
[419718220,1775332316326,-500.0,0.00036054,9]
[419718221,1775332316335,-500.0,0.00036054,9]
[419718222,1775332316345,-500.0,0.00036054,9]
[419718223,1775332316355,-500.0,0.00036054,9]
[419718224,1775332316366,-500.0,0.00036054,9]
[419718225,1775332316376,-500.0,0.00036054,9]
[419718226,1775332316385,-500.0,0.00036054,9]
[419718227,1775332316394,-500.0,0.00036054,9]
[419718228,1775332316405,-500.0,0.00036054,9]
[419718229,1775332316415,-531.16,0.00036054,9]
[419718230,1775332316426,-533.63706347,0.00036054,9]
[419718231,1775332316436,-1812.29,0.00036054,9]
[419718232,1775332316446,-500.0,0.00036054,9]
[419718233,1775332316455,-500.0,0.00036054,9]
[419718234,1775332316465,-500.0,0.00036054,9]
[419718235,1775332316475,-1052.58,0.00036054,9]
[419718236,1775332316484,-500.0,0.00036054,9]
[419718237,1775332316494,-500.0,0.00036054,9]
[419718238,1775332316504,-500.0,0.00036054,9]
[419718239,1775332316514,-500.0,0.00036054,9]
[419718240,1775332316524,-503.77,0.00036054,9]
[419718241,1775332316534,-500.0,0.00036054,9]
[419718242,1775332316544,-500.0,0.00036054,9]
[419718243,1775332316553,-500.0,0.00036054,9]
[419718244,1775332316562,-500.0,0.00036054,9]
[419718245,1775332316571,-500.0,0.00036054,9]
[419718246,1775332316581,-500.0,0.00036054,9]
[419718247,1775332316591,-1592.56,0.00036054,9]
[419718248,1775332316601,-500.0,0.00036054,9]
[419718249,1775332316610,-500.0,0.00036054,9]
[419718250,1775332316619,-1622.77,0.00036054,9]
[419718251,1775332316629,-500.0,0.00036054,9]
[419718252,1775332316639,-500.0,0.00036054,9]
[419718253,1775332316648,-500.0,0.00036054,9]
[419718254,1775332316657,-500.0,0.00036054,9]
[419718255,1775332316666,-500.0,0.00036054,9]
[419718256,1775332316675,-500.0,0.00036054,9]
[419718257,1775332316685,-500.0,0.00036054,9]
[419718258,1775332316696,-1201.59,0.00036054,9]
[419718259,1775332316707,-500.0,0.00036054,9]
[419718260,1775332316718,-500.0,0.00036054,9]
[419718261,1775332316727,-500.0,0.00036054,9]
[419718262,1775332316736,-500.0,0.00036054,9]
[419718263,1775332316746,-500.0,0.00036054,9]
[419718264,1775332316755,-535.5795192,0.00036054,9]
[419718265,1775332316765,-1721.74,0.00036054,9]
[419718266,1775332316774,-500.0,0.00036054,9]
[419718267,1775332316783,-500.0,0.00036054,9]
[419718268,1775332316793,-500.0,0.00036054,9]
[419718269,1775332316802,-500.0,0.00036054,9]
[419718270,1775332316811,-500.0,0.00036054,9]
[419718271,1775332316820,-500.0,0.00036054,9]
[419718272,1775332316830,-500.0,0.00036054,9]
[419718273,1775332316839,-500.0,0.00036054,9]
[419718274,1775332316849,-500.0,0.00036054,9]
[419718275,1775332316860,-530.9,0.00036054,9]
[419718276,1775332316869,-1141.67,0.00036054,9]
[419718277,1775332316879,-523.49,0.00036054,9]
[419718278,1775332316890,-1736.67,0.00036054,9]
[419718279,1775332316900,-500.0,0.00036054,9]
[419718280,1775332316910,-500.0,0.00036054,9]
[419718281,1775332316920,-500.0,0.00036054,9]
[419718282,1775332316929,-162.49335023,0.00036054,9]
[419718283,1775332316939,-500.0,0.00036054,9]
[419718284,1775332316950,-500.0,0.00036054,9]
[419718285,1775332316961,-500.0,0.00036054,9]
[419718286,1775332316970,-1294.2,0.00036054,9]
[419718287,1775332316979,-500.0,0.00036054,9]
[419718288,1775332316988,-1506.39,0.00036054,9]
[419718289,1775332316998,-500.0,0.00036054,9]
[419718290,1775332317008,-500.0,0.00036054,9]
[419718291,1775332317018,-1626.06,0.00036054,9]
[419718292,1775332317090,-500.0,0.00036054,9]
[419718293,1775332317099,-382.02877361,0.00036054,9]
[419718294,1775332317108,-500.0,0.00036054,9]
[419718295,1775332317117,-500.0,0.00036054,2]
[419718296,1775332317127,-500.0,0.00036054,9]
[419718297,1775332317137,-500.0,0.00036054,9]
[419718298,1775332317146,-500.0,0.00036054,9]
[419718299,1775332317155,-500.0,0.00036054,9]
[419718300,1775332317164,-500.0,0.00036054,9]
[419718301,1775332317174,-500.0,0.00036054,9]
[419718302,1775332317183,-500.0,0.00036054,9]
[419718303,1775332317192,-1189.32,0.00036054,9]
[419718304,1775332317202,-284.98873899,0.00036054,9]
[419718305,1775332317211,-500.0,0.00036054,9]